bitfinex/quotes_ETHUSD_20241215
["timestamp","ask_amount","ask_price","bid_price","bid_amount"]
[1734264632905,0.521124,3884.9,3884.4,2.27589105]
[1734264633088,0.521124,3884.9,3884.4,0.06763973]
[1734264633292,0.521124,3884.9,3884.5,0.7937]
[1734264633510,0.521124,3884.9,3884.6,0.06755482]
[1734264634591,0.7529,3884.8,3884.6,0.06755482]
[1734264635028,0.7529,3884.8,3884.2,3.64349801]
[1734264635228,0.7529,3884.8,3884.7,0.06751237]
[1734264635392,0.7529,3884.8,3884.2,1.06897801]
[1734264635598,0.521124,3884.9,3884.7,0.06751237]
[1734264636152,0.521124,3884.9,3884.8,0.06746992]
[1734264636669,0.521124,3884.9,3884.1,1.86267801]
[1734264636820,0.521124,3884.9,3884.8,0.06746992]
[1734264637015,0.521124,3884.9,3884.2,0.34679701]
[1734264637202,0.521124,3884.9,3884.8,0.06746992]
[1734264637410,0.521124,3884.9,3884.2,0.34679701]
[1734264637605,0.521124,3884.9,3884.8,0.06746992]
[1734264637813,0.7529,3884.6,3883.8,1.06897801]
[1734264638104,0.7529,3884.6,3883.9,0.94904113]
[1734264638335,0.7529,3884.6,3883.9,0.06551337]
[1734264638649,0.7529,3884.6,3883.6,1.06897801]
[1734264638806,0.7529,3884.6,3884.0,0.0654709]
[1734264639148,0.7529,3884.6,3884.1,0.06542843]
[1734264639641,0.7529,3884.6,3883.8,1.06897801]
[1734264639940,0.7529,3884.6,3883.9,2.42330608]
[1734264640161,0.7529,3884.6,3883.9,0.27943088]
[1734264641907,0.50607562,3884.2,3883.9,0.27943088]
[1734264643136,1.30977562,3884.2,3883.9,0.06563528]
[1734264643651,1.30977562,3884.2,3883.6,1.06897801]
[1734264643840,1.30977562,3884.2,3884.0,0.06557824]
[1734264644038,1.30977562,3884.2,3883.5,1.86267801]
[1734264644252,1.30977562,3884.2,3884.1,0.06554002]
[1734264644465,1.30977562,3884.2,3883.5,1.06897801]
[1734264644611,1.30977562,3884.2,3884.1,0.06554002]
[1734264644812,1.30977562,3884.2,3883.4,1.06897801]
[1734264645037,1.30977562,3884.2,3883.5,0.369677]
[1734264645348,1.30977562,3884.2,3883.6,0.88410372]
[1734264645714,1.30977562,3884.2,3883.7,0.06574461]
[1734264646220,1.30977562,3884.2,3883.5,0.369677]
[1734264646450,1.30977562,3884.2,3883.8,0.06570214]
[1734264646647,1.30977562,3884.2,3883.5,0.369677]
[1734264646956,1.30977562,3884.2,3883.6,2.60634455]
[1734264647126,0.50607562,3884.2,3883.8,0.7721]
[1734264647326,0.50607562,3884.2,3883.9,0.06565967]
[1734264650217,0.50607562,3884.2,3884.0,0.88462526]
[1734264650620,0.50607562,3884.2,3884.1,0.06565982]
[1734264651263,0.50607562,3884.2,3883.8,0.7721]
[1734264651584,0.50607562,3884.2,3883.9,0.369677]
[1734264651870,0.50607562,3884.2,3884.0,0.88484178]
[1734264652288,0.50607562,3884.2,3884.1,0.9505016]
[1734264652588,0.50607562,3884.2,3884.1,0.95075269]
[1734264652868,0.50607562,3884.2,3884.1,0.95074428]
[1734264653037,0.50607562,3884.2,3884.1,1.26689421]
[1734264656383,0.50607562,3884.2,3884.1,2.5944068]
[1734264656670,0.50607562,3884.2,3884.1,1.26689421]
[1734264656873,0.50607562,3884.2,3884.1,0.38180975]
[1734264657036,0.50607562,3884.2,3884.1,2.59439379]
[1734264657235,0.8037,3884.5,3884.1,1.26689421]
[1734264657436,0.52616404,3884.7,3884.2,2.44600399]
[1734264657649,0.52616404,3884.7,3884.3,6.61334478]
[1734264657978,0.52616404,3884.7,3884.4,2.21241677]
[1734264658185,0.52616404,3884.7,3884.5,2.21241677]
[1734264658392,0.52616404,3884.7,3884.6,0.88508446]
[1734264658863,0.7514,3885.2,3884.6,0.95066644]
[1734264659179,0.7514,3885.2,3884.6,0.06558198]
[1734264659590,0.7514,3885.2,3884.3,4.40092801]
[1734264659751,0.7514,3885.2,3884.7,0.06511525]
[1734264659951,0.7514,3885.2,3884.3,4.40092801]
[1734264660177,0.7514,3885.2,3884.8,0.06507281]
[1734264660483,0.7514,3885.2,3884.3,4.40092801]
[1734264660687,0.7514,3885.2,3884.9,0.06503838]
[1734264660860,0.7514,3885.2,3884.4,2.211602]
[1734264660861,0.7514,3885.2,3884.3,1.06897801]
[1734264661061,0.7514,3885.2,3885.0,0.06259421]
[1734264661390,0.7514,3885.2,3884.4,1.33640501]
[1734264661550,0.7514,3885.2,3884.5,2.211332]
[1734264661752,2.57389,3885.2,3884.5,0.060431]
[1734264661959,1.26283969,3885.1,3884.5,0.060431]
[1734264662191,1.26283969,3885.1,3884.2,1.06897801]
[1734264662392,1.26283969,3885.1,3884.6,0.06038855]
[1734264662686,1.26283969,3885.1,3884.3,1.41215502]
[1734264662989,1.26283969,3885.1,3884.4,2.2115616]
[1734264663295,1.26283969,3885.1,3884.5,0.88462464]
[1734264663496,3.83680969,3885.1,3884.4,0.06047344]
[1734264663651,3.83680969,3885.1,3884.6,0.06038855]
[1734264663853,3.83680969,3885.1,3884.5,0.060431]
[1734264664110,3.83680969,3885.1,3884.7,0.06034611]
[1734264664404,4.22049066,3885.1,3884.8,0.06030368]
[1734264664891,4.22049066,3885.1,3884.3,1.06897801]
[1734264665092,3.83680969,3885.1,3884.4,2.21188838]
[1734264665300,3.83680969,3885.1,3884.5,0.88479519]
[1734264665473,3.83680969,3885.1,3884.4,0.06047344]
[1734264665665,3.83680969,3885.1,3884.6,0.06038855]
[1734264666011,3.83680969,3885.1,3884.7,0.06034611]
[1734264666307,4.22049066,3885.1,3884.7,0.06034611]
[1734264666490,4.22049066,3885.1,3884.2,1.06897801]
[1734264666699,3.83680969,3885.1,3884.8,0.06030368]
[1734264667009,0.7514,3885.0,3884.1,1.06897801]
[1734264667181,0.7514,3884.3,3883.9,1.06897801]
[1734264667381,0.7514,3884.3,3883.4,0.7575]
[1734264667382,0.7514,3884.3,3884.2,0.06075847]
[1734264667709,0.7514,3884.3,3883.7,1.06897801]
[1734264667869,0.7514,3884.3,3884.2,0.05876484]
[1734264668065,0.7514,3884.3,3883.7,1.06897801]
[1734264668297,0.7514,3884.3,3884.2,0.05893065]
[1734264668500,0.7514,3884.3,3883.7,1.06897801]
[1734264668703,0.7514,3884.3,3884.2,0.05893065]
[1734264669210,0.50869836,3884.4,3883.8,0.7575]
[1734264669511,0.7514,3884.7,3884.2,0.05893065]
[1734264669707,0.7514,3884.7,3884.0,1.06897801]
[1734264670015,0.7514,3884.7,3884.1,0.34317701]
[1734264670229,0.7514,3884.7,3884.2,0.88500721]
[1734264670734,0.51739802,3884.5,3884.3,0.05894184]
[1734264671269,0.51739802,3884.5,3884.1,0.34317701]
[1734264671523,0.51739802,3884.5,3884.4,0.05889939]
[1734264671671,0.51739802,3884.5,3883.9,1.06897801]
[1734264671871,0.51739802,3884.5,3884.4,0.05903106]
[1734264672414,0.51739802,3884.5,3884.0,1.06897801]
[1734264672625,0.51739802,3884.5,3884.4,0.05903106]
[1734264672912,0.51739802,3884.5,3884.1,1.06897801]
[1734264673112,0.51739802,3884.5,3884.4,0.05903106]
[1734264673511,0.51739802,3884.5,3884.1,1.06897801]
[1734264673826,0.51739802,3884.5,3884.2,0.32654297]
[1734264674041,0.51739802,3884.5,3884.3,0.88506497]
[1734264674384,0.51739802,3884.5,3884.4,0.05903106]
[1734264674987,0.51739802,3884.5,3884.0,1.06897801]
[1734264675536,0.51739802,3884.5,3884.0,3.28180829]
[1734264675837,0.51739802,3884.5,3884.1,2.2719887]
[1734264676034,0.8133,3884.4,3884.2,0.88513211]
[1734264676245,0.8133,3884.4,3884.1,0.05915842]
[1734264676384,0.8133,3884.4,3883.8,1.06897801]
[1734264676385,2.57447,3884.3,3883.8,1.06897801]
[1734264676587,2.57447,3884.3,3883.9,0.88555242]
[1734264676784,2.57447,3884.3,3883.6,1.06897801]
[1734264677185,2.57447,3884.3,3883.6,1.95459743]
[1734264677390,2.57447,3884.3,3883.7,2.21404856]
[1734264677625,2.57447,3884.3,3883.8,0.88561942]
[1734264677933,2.57447,3884.3,3883.8,0.0592548]
[1734264678086,2.57447,3884.3,3883.6,1.06897801]
[1734264678640,2.57447,3884.3,3883.7,0.05929726]
[1734264678843,2.57447,3884.3,3883.8,0.88560233]
[1734264679202,2.57447,3884.3,3883.9,0.05921233]
[1734264679788,0.8133,3884.4,3883.6,1.06897801]
[1734264679988,2.57441,3884.4,3884.0,0.05916987]
[1734264680231,2.57459,3884.1,3884.0,0.05916987]
[1734264680402,3.38789,3884.1,3883.3,1.06897801]
[1734264680588,0.8133,3884.1,3883.3,1.9546721]
[1734264680812,0.8133,3884.1,3883.2,0.2504]
[1734264680813,0.8133,3884.1,3883.4,3.34095138]
[1734264681117,0.8133,3884.1,3883.5,2.21423523]
[1734264681317,0.8133,3884.1,3883.6,2.27188843]
[1734264681536,0.8133,3884.1,3883.6,0.0576532]
[1734264681814,0.8133,3884.1,3883.4,1.06897801]
[1734264682016,0.8133,3884.1,3883.7,0.05778147]
[1734264682344,0.8133,3884.1,3883.4,1.06897801]
[1734264682548,0.8133,3884.1,3883.4,3.78943428]
[1734264682753,0.8133,3884.1,3883.5,2.27181674]
[1734264682916,0.8133,3884.1,3883.6,2.21411851]
[1734264683114,0.8133,3884.1,3883.7,0.94342887]
[1734264683315,0.8133,3884.1,3883.7,0.05778147]
[1734264683650,0.8133,3884.1,3883.4,1.57548395]
[1734264683847,0.8133,3884.1,3883.8,0.05773901]
[1734264684011,3.726683,3884.1,3883.3,1.06897801]
[1734264684361,3.3879,3884.1,3883.3,1.06897801]
[1734264684668,3.3879,3884.1,3883.4,0.05790888]
[1734264684881,3.3879,3884.1,3883.5,0.88570328]
[1734264685218,0.52565055,3883.9,3883.6,0.05782394]
[1734264685863,0.52565055,3883.9,3883.2,1.31937801]
[1734264686025,0.52565055,3883.9,3883.7,0.05778147]
[1734264686225,0.52565055,3883.9,3883.2,1.31937801]
[1734264686570,0.52565055,3883.9,3883.3,2.21403645]
[1734264686871,0.52565055,3883.9,3883.2,1.31937801]
[1734264686872,0.52565055,3883.9,3883.4,2.27194533]
[1734264687068,0.52565055,3883.9,3883.5,0.88561458]
[1734264687365,0.52565055,3883.9,3883.6,0.05788193]
[1734264687733,0.52565055,3883.9,3883.3,1.06897801]
[1734264688065,0.52565055,3883.9,3883.4,0.05794953]
[1734264688271,0.52565055,3883.9,3883.5,2.21372985]
[1734264688416,0.52565055,3883.9,3883.6,0.88549194]
[1734264688616,0.52565055,3883.9,3883.6,0.05784724]
[1734264689044,0.52565055,3883.9,3883.3,1.06897801]
[1734264689239,0.52565055,3883.9,3883.7,0.05778743]
[1734264689442,0.52565055,3883.9,3883.3,1.06897801]
[1734264689917,0.52565055,3883.9,3883.4,0.05791484]
[1734264690113,0.52565055,3883.9,3883.5,0.88540261]
[1734264690374,0.8197,3883.8,3883.6,0.0578299]
[1734264690675,3.39451,3883.8,3883.6,0.0578299]
[1734264690962,3.78652606,3883.8,3883.7,0.05778743]
[1734264691145,0.8163,3883.7,3883.2,0.2504]
[1734264691464,0.52565055,3883.9,3883.2,0.2504]
[1734264691465,0.8163,3883.4,3883.3,0.05819635]
[1734264691842,0.8163,3883.4,3883.2,0.2504]
[1734264692051,0.8163,3883.4,3883.3,0.05819635]
[1734264692424,0.8163,3883.4,3883.2,0.2504]
[1734264692626,0.8163,3883.4,3883.3,0.05819635]
[1734264693165,0.8163,3883.4,3883.3,0.05841098]
[1734264693475,0.8163,3883.4,3883.2,0.2504]
[1734264693670,0.8163,3883.4,3883.3,0.05841098]
[1734264694467,3.73049,3883.4,3883.2,0.2504]
[1734264694675,3.73049,3883.4,3883.3,0.05841098]
[1734264695043,3.73049,3883.4,3883.2,0.2504]
[1734264695627,2.57512,3883.3,3883.2,0.2504]
[1734264695883,1.15543,3883.4,3883.2,0.2504]
[1734264696168,2.57512,3883.3,3883.2,0.2504]
[1734264697228,0.8163,3883.4,3883.2,0.2504]
[1734264698357,3.39124,3883.6,3883.2,0.2504]
[1734264699907,0.8163,3883.6,3883.2,0.2504]
[1734264700111,3.39125,3883.6,3883.2,0.2504]
[1734264700268,0.33356224,3883.5,3883.2,0.2504]
[1734264701113,2.57495,3883.6,3883.2,0.2504]
[1734264701325,2.57526,3883.1,3882.0,1.06897801]
[1734264701472,2.57526,3883.1,3881.8,1.60529204]
[1734264701473,3.39197,3882.5,3881.8,1.06897801]
[1734264701811,3.39197,3882.5,3881.7,0.7937]
[1734264701812,3.39197,3882.5,3881.9,2.21154612]
[1734264702011,3.39197,3882.5,3882.0,0.88461845]
[1734264702316,0.5141858,3882.1,3881.4,0.7937]
[1734264702529,0.5141858,3882.1,3881.5,2.39760888]
[1734264702815,0.5141858,3882.1,3881.5,0.1862678]
[1734264704524,0.5141858,3882.1,3881.4,0.7937]
[1734264704955,0.5141858,3882.1,3881.4,3.37006]
[1734264705387,0.5141858,3882.1,3881.4,0.7937]
[1734264705593,0.8163,3882.0,3881.4,0.7937]
[1734264705993,0.8163,3882.0,3881.1,0.7937]
[1734264706605,0.8163,3882.0,3880.8,3.0]
[1734264706951,0.8163,3882.0,3880.8,2.57677]
[1734264707787,0.8163,3882.0,3880.9,0.05520279]
[1734264710848,0.51084981,3881.4,3880.9,0.05520279]
[1734264711083,0.51084981,3881.4,3880.8,2.57673]
[1734264711414,0.51084981,3881.4,3880.9,0.05520876]
[1734264711775,0.51084981,3881.4,3881.0,0.756]
[1734264712006,0.51084981,3881.4,3881.1,0.0551237]
[1734264712781,0.51084981,3881.4,3880.8,3.33273]
[1734264713121,0.51084981,3881.4,3880.9,0.05520876]
[1734264715613,0.51084981,3881.4,3881.0,2.57658]
[1734264715781,0.51084981,3881.4,3881.0,2.63174623]
[1734264716230,0.51084981,3881.4,3881.0,0.05516623]
[1734264716479,0.51084981,3881.4,3880.8,3.33276]
[1734264716981,0.51084981,3881.4,3880.9,0.05566205]
[1734264718897,0.51084981,3881.4,3880.7,2.57684]
[1734264719097,0.51084981,3881.4,3881.0,0.05561951]
[1734264719311,0.51084981,3881.4,3880.7,2.57684]
[1734264719848,0.51084981,3881.4,3880.8,0.05570459]
[1734264720447,0.8248,3881.3,3880.8,0.05570459]
[1734264720896,3.40127,3881.3,3880.2,3.33318]
[1734264721099,2.57665,3881.1,3880.9,0.05428651]
[1734264721297,0.8248,3880.9,3879.8,3.33343]
[1734264721733,0.8248,3880.9,3879.9,0.05471199]
[1734264721927,3.40158,3880.8,3879.9,0.05471199]
[1734264722305,0.8248,3880.8,3879.8,2.57738]
[1734264722609,0.8248,3880.8,3879.9,2.63207199]
[1734264723617,0.8248,3880.8,3879.9,0.05471199]
[1734264723853,1.164946,3880.8,3879.7,2.57751]
[1734264724156,0.8248,3880.7,3880.0,0.05467745]
[1734264724299,0.8248,3880.7,3879.8,0.05481068]
[1734264724500,0.50774548,3880.4,3880.1,0.0548033]
[1734264724748,0.8248,3880.3,3879.4,2.57765]
[1734264724953,0.8248,3880.3,3880.2,0.05532233]
[1734264725266,1.21575255,3880.3,3879.2,3.33384]
[1734264725423,0.8248,3880.2,3879.2,2.57784]
[1734264725598,0.8248,3880.2,3879.3,0.05554495]
[1734264726849,0.52455822,3879.6,3879.3,0.05554495]
[1734264727203,0.52455822,3879.6,3879.2,2.57784]
[1734264727451,0.52455822,3879.6,3879.3,0.05539236]
[1734264727749,0.8248,3879.5,3879.0,2.57797]
[1734264727960,0.8248,3879.5,3879.4,0.05534978]
[1734264728257,0.8248,3879.5,3879.4,0.05536715]
[1734264728457,0.8248,3879.5,3879.0,2.911367]
[1734264728603,0.8248,3879.5,3879.4,0.05536715]
[1734264728800,0.8248,3879.5,3878.8,2.57811]
[1734264729049,0.8248,3879.5,3878.9,0.05558008]
[1734264729259,0.95973582,3879.5,3878.9,0.05558008]
[1734264729564,0.95973582,3879.5,3878.3,0.756]
[1734264729721,0.95973582,3879.5,3879.0,0.05553749]
[1734264729975,0.95973582,3879.5,3878.4,2.57836]
[1734264730320,0.8248,3879.3,3878.0,3.33464]
[1734264730453,0.8248,3879.3,3878.5,0.05413605]
[1734264730653,0.8248,3879.3,3878.0,2.57864]
[1734264730905,0.8248,3879.3,3878.6,0.05622754]
[1734264731208,3.40259,3879.3,3878.0,2.57864]
[1734264731385,0.40875258,3879.2,3878.0,2.912104]
[1734264731791,0.40875258,3879.2,3878.3,2.57843]
[1734264731958,0.8248,3879.3,3878.4,0.05632741]
[1734264733392,0.8248,3879.3,3878.1,2.57857]
[1734264733793,0.8248,3879.3,3878.2,0.05641263]
[1734264734160,0.7542,3879.2,3878.2,0.05641263]
[1734264735007,0.52007774,3878.5,3878.2,0.05641263]
[1734264735627,1.27427774,3878.5,3878.2,0.05641263]
[1734264736059,1.27427774,3878.5,3877.4,0.8212]
[1734264736060,0.7542,3878.4,3878.3,0.05637002]
[1734264736266,1.13945277,3878.4,3878.3,0.05637002]
[1734264736462,3.33266,3878.3,3877.1,2.57918]
[1734264736805,0.7542,3878.2,3876.8,0.8212]
[1734264737024,0.7542,3878.2,3877.5,2.57895]
[1734264737173,0.7542,3878.2,3877.2,2.57913]
[1734264737760,0.7542,3878.2,3876.8,0.8212]
[1734264737997,0.7542,3878.2,3877.0,3.0]
[1734264738217,0.7542,3878.2,3876.8,0.8212]
[1734264738367,0.7542,3878.2,3877.0,2.5793]
[1734264738711,0.7542,3878.2,3876.8,0.8212]
[1734264738712,0.51592978,3877.8,3877.1,2.63632603]
[1734264738913,0.7542,3877.7,3877.1,0.05710603]
[1734264739417,0.7542,3877.7,3876.3,3.0]
[1734264739562,3.33306,3877.7,3877.2,0.05797247]
[1734264739762,3.33306,3877.7,3876.2,0.8212]
[1734264739763,0.7542,3877.6,3876.2,0.8212]
[1734264740078,0.7542,3877.6,3876.4,2.5797]
[1734264740521,0.7542,3877.6,3876.5,0.05806162]
[1734264741094,0.7542,3877.1,3876.0,2.57997]
[1734264741439,0.7542,3877.0,3876.6,0.0590944]
[1734264741727,0.7542,3877.0,3876.1,0.05898592]
[1734264742009,0.7542,3877.0,3875.7,0.8212]
[1734264742214,0.7542,3878.4,3876.0,0.8212]
[1734264742393,0.7542,3878.3,3877.0,2.5793]
[1734264742607,0.25,3879.1,3876.7,0.8212]
[1734264742608,0.7542,3878.1,3876.7,0.8212]
[1734264742909,0.7542,3877.9,3876.7,2.57948]
[1734264743090,0.52722074,3877.3,3876.8,0.05871958]
[1734264743292,0.52722074,3877.3,3876.7,2.57948]
[1734264743614,0.52722074,3877.3,3876.9,0.05867694]
[1734264743791,0.52722074,3877.3,3876.8,0.05871958]
[1734264743998,0.52722074,3877.3,3877.0,0.05863431]
[1734264744311,0.7542,3877.2,3876.9,0.05867694]
[1734264744523,0.7542,3877.2,3876.4,3.40086]
[1734264744664,0.7542,3877.2,3877.0,0.05866646]
[1734264744864,0.7542,3877.2,3876.4,3.40086]
[1734264745090,0.7542,3877.2,3877.1,0.05862383]
[1734264745441,0.7542,3877.2,3876.4,2.57966]
[1734264745754,0.7542,3877.2,3877.1,0.05862383]
[1734264745894,0.7542,3877.2,3876.5,2.57962]
[1734264746094,0.7542,3877.2,3877.1,0.05862383]
[1734264746290,0.52722074,3877.3,3876.1,0.8212]
[1734264746538,0.52722074,3877.3,3877.1,0.05862383]
[1734264746747,0.52722074,3877.3,3876.7,2.57948]
[1734264746954,0.52722074,3877.3,3877.2,0.0585812]
[1734264747128,0.7542,3877.9,3877.2,2.6377612]
[1734264747332,0.7542,3877.9,3876.9,0.8212]
[1734264747549,0.7542,3877.9,3877.3,0.05853858]
[1734264747840,0.7542,3877.9,3877.4,2.63750595]
[1734264748042,0.7542,3877.9,3877.4,2.90125654]
[1734264748927,0.13004829,3879.1,3877.4,0.32224654]
[1734264748928,1.27129864,3878.2,3877.4,0.32224654]
[1734264749157,0.51709864,3878.2,3877.8,2.57875]
[1734264749572,0.51709864,3878.2,3877.9,0.05828287]
[1734264749746,0.51709864,3878.2,3877.9,2.63699287]
[1734264749976,0.7542,3878.1,3877.9,0.05828287]
[1734264750140,2.96362286,3878.0,3877.9,0.05828287]
[1734264750346,2.96362286,3878.0,3876.6,0.8212]
[1734264750347,0.7542,3877.8,3876.6,0.8212]
[1734264750547,0.7542,3877.8,3876.7,2.5795]
[1734264750883,0.7542,3877.8,3876.7,2.63810853]
[1734264751082,0.33366605,3877.7,3876.7,2.63810853]
[1734264751231,0.8241,3877.6,3876.7,0.05860853]
[1734264751428,0.8241,3877.6,3876.4,2.57964]
[1734264751748,0.8241,3877.6,3876.5,2.63830424]
[1734264752702,0.8241,3877.6,3876.5,0.05867424]
[1734264752854,0.8241,3877.4,3876.5,0.05867424]
[1734264753188,3.40315,3877.4,3876.5,0.05867424]
[1734264753390,0.5113793,3877.2,3876.3,2.57977]
[1734264753529,0.5113793,3877.2,3876.6,0.05890547]
[1734264753727,0.5113793,3877.2,3876.3,2.57977]
[1734264753930,0.8241,3877.1,3876.7,0.05886283]
[1734264754242,3.40342,3877.0,3875.7,2.58011]
[1734264754440,0.8241,3876.9,3876.8,0.05897675]
[1734264754747,0.8241,3876.9,3875.6,0.8195]
[1734264754748,0.8241,3876.9,3875.8,2.5801]
[1734264754947,0.8241,3876.9,3875.6,0.8195]
[1734264754948,0.8241,3876.9,3875.9,2.58004]
[1734264755173,0.8241,3876.9,3875.9,2.63940058]
[1734264755353,1.22892172,3876.9,3875.9,0.05936058]
[1734264755552,0.8241,3876.9,3875.9,0.05936058]
[1734264755761,0.8241,3876.9,3875.8,2.5801]
[1734264755968,0.8241,3876.9,3876.0,0.05963958]
[1734264756167,0.8241,3876.9,3875.9,0.05968225]
[1734264756485,0.64492723,3877.2,3875.3,5.58038]
[1734264756486,3.40356,3876.8,3876.0,0.05963958]
[1734264756689,0.340356,3876.7,3875.6,2.5802]
[1734264756840,0.340356,3876.7,3876.1,0.05978771]
[1734264757168,0.340356,3876.7,3875.6,2.5802]
[1734264757335,0.8241,3876.6,3876.2,0.05974505]
[1734264757538,0.8241,3876.4,3875.3,2.58039]
[1734264757737,0.8241,3876.4,3876.3,0.0597611]
[1734264757997,0.3743916,3876.5,3874.7,0.8195]
[1734264757998,0.8241,3876.2,3874.7,0.8195]
[1734264758487,0.8241,3876.3,3875.0,2.58063]
[1734264758634,0.8241,3876.3,3875.3,2.58038]
[1734264758836,0.8241,3876.3,3875.4,2.6405]
[1734264759280,0.8241,3876.3,3875.5,2.58028]
[1734264759478,0.8241,3876.3,3875.5,2.64038732]
[1734264760251,0.51661619,3876.4,3875.5,0.87960732]
[1734264760452,0.51661619,3876.4,3875.6,0.55]
[1734264760700,0.51661619,3876.4,3876.1,2.57987]
[1734264760838,0.8241,3876.6,3876.1,2.57987]
[1734264761190,0.8241,3876.6,3876.2,0.0599708]
[1734264761393,0.8241,3876.6,3876.2,2.6398008]
[1734264761582,0.8241,3876.6,3876.2,2.57983]
[1734264761781,0.8241,3876.6,3875.7,2.72313073]
[1734264761782,0.51491408,3876.5,3876.3,0.05992814]
[1734264762156,0.51491408,3876.5,3875.5,3.8195]
[1734264762157,0.51491408,3876.5,3876.0,2.57996]
[1734264762496,0.51491408,3876.5,3876.1,2.64029904]
[1734264762903,0.51491408,3876.5,3876.1,0.32443894]
[1734264763051,0.51491408,3876.5,3876.4,2.57971]
[1734264763457,0.51491408,3876.5,3876.4,2.63982959]
[1734264764388,0.8241,3877.4,3876.4,2.63982959]
[1734264764389,0.8241,3877.4,3876.8,2.5794]
[1734264764813,0.52220384,3876.9,3876.8,2.5794]
[1734264766769,0.52220384,3876.9,3876.6,2.57957]
[1734264767099,0.52220384,3876.9,3876.7,2.57951]
[1734264767911,0.52220384,3876.9,3876.8,0.05954174]
[1734264768077,0.52220384,3876.9,3876.7,2.57951]
[1734264768274,0.52220384,3876.9,3876.8,0.05954174]
[1734264768484,1.34630384,3876.9,3875.5,0.8195]
[1734264768790,1.34630384,3876.9,3876.8,0.05954174]
[1734264769112,1.34630384,3876.9,3875.6,0.18869838]
[1734264769314,1.34630384,3876.9,3876.8,0.05954174]
[1734264769625,1.34630384,3876.9,3875.8,2.58004]
[1734264769804,1.34630384,3876.9,3875.9,2.58004]
[1734264769979,1.34630384,3876.9,3876.2,2.57984]
[1734264770487,1.34630384,3876.9,3876.3,2.63953302]
[1734264770701,1.34630384,3876.9,3876.5,2.57963]
[1734264771091,1.34630384,3876.9,3876.6,0.05979651]
[1734264771442,1.34630384,3876.9,3876.3,2.57977]
[1734264771625,1.34630384,3876.9,3876.7,0.05975386]
[1734264771787,1.48093422,3876.9,3875.7,1.06748384]
[1734264771988,1.48093422,3876.9,3876.8,0.05771012]
[1734264772316,1.48093422,3876.9,3875.4,2.58036]
[1734264772317,0.7869,3876.6,3875.4,2.58036]
[1734264772873,0.7869,3876.6,3875.5,2.58028]
[1734264773282,0.7869,3876.6,3875.3,2.58044]
[1734264773486,1.18922442,3876.6,3875.5,2.5803]
[1734264773715,0.7869,3876.6,3875.2,0.8315]
[1734264774005,0.7869,3876.6,3875.2,3.41195]
[1734264774587,0.7869,3876.6,3875.4,1.07418496]
[1734264774806,0.7869,3876.6,3875.5,2.22054173]
[1734264775019,0.7869,3876.6,3875.6,3.46843669]
[1734264775221,0.7869,3876.6,3875.6,2.58022]
[1734264775383,1.17575638,3876.6,3875.4,1.07418496]
[1734264775726,1.17575638,3876.6,3875.0,2.14836993]
[1734264775727,0.7869,3876.1,3875.0,1.07418496]
[1734264776031,0.7869,3876.1,3875.0,4.80196167]
[1734264776240,0.7869,3876.1,3875.1,2.22133167]
[1734264776443,0.7869,3876.1,3875.2,0.88853267]
[1734264776643,0.7869,3876.1,3875.0,3.65481496]
[1734264776922,1.17456867,3876.1,3875.1,2.22191152]
[1734264777127,1.17456867,3876.1,3875.2,0.88876461]
[1734264777327,1.17456867,3876.1,3875.0,3.65481496]
[1734264777496,1.17456867,3876.1,3875.1,2.2222922]
[1734264777676,1.17456867,3876.1,3875.2,0.88893847]
[1734264778024,0.7869,3875.9,3874.8,1.07418496]
[1734264778319,0.7869,3875.9,3874.8,3.29674779]
[1734264778626,0.7869,3875.9,3874.9,3.29674779]
[1734264778822,0.7869,3875.9,3875.0,2.22256283]
[1734264779123,3.36697,3875.9,3875.1,0.88902513]
[1734264779326,3.36697,3875.9,3874.5,2.14836993]
[1734264779327,0.7869,3875.7,3874.8,1.07418496]
[1734264779490,0.7869,3875.5,3874.9,0.88905728]
[1734264779690,3.36721,3875.5,3874.4,1.07418496]
[1734264779927,3.36721,3875.5,3874.5,0.88930188]
[1734264779928,2.58031,3875.5,3874.5,0.88930188]
[1734264780126,3.625341,3875.4,3874.2,1.07418496]
[1734264780325,0.7869,3875.1,3874.2,3.29768041]
[1734264780528,0.7869,3875.1,3873.9,2.58136]
[1734264780529,3.36747,3875.1,3874.3,2.22349545]
[1734264780824,0.52182346,3874.7,3873.9,1.07418496]
[1734264781009,0.52182346,3874.7,3873.5,3.65580496]
[1734264781010,0.7869,3874.6,3873.5,3.65580496]
[1734264781213,0.7869,3874.6,3873.6,3.29865521]
[1734264781724,0.7869,3874.6,3873.7,0.8897881]
[1734264782427,0.7869,3874.6,3873.2,1.07418496]
[1734264782617,0.7869,3874.6,3873.4,2.58169]
[1734264782797,0.7869,3874.6,3873.3,0.55]
[1734264783000,0.7869,3874.6,3873.5,0.06095519]
[1734264783310,0.7869,3874.6,3873.7,2.5815]
[1734264783833,0.7869,3874.6,3873.8,0.0608809]
[1734264784389,0.7869,3874.6,3873.4,2.58169]
[1734264784896,0.7869,3874.5,3873.5,0.06102512]
[1734264785103,1.17586335,3874.5,3873.5,0.06102512]
[1734264785301,1.17586335,3874.5,3873.5,2.64266512]
[1734264785496,1.17586335,3874.5,3873.6,2.58155]
[1734264785721,1.17586335,3874.5,3873.6,2.64237127]
[1734264786428,1.17586335,3874.5,3873.6,0.06082127]
[1734264786628,0.42785368,3874.4,3873.6,0.06082127]
[1734264786798,0.42785368,3874.4,3873.4,2.5817]
[1734264787004,0.42785368,3874.4,3873.7,0.06078662]
[1734264787203,0.42785368,3874.4,3873.4,2.5817]
[1734264787428,0.51433304,3874.0,3873.8,0.06074392]
[1734264787616,0.51433304,3874.0,3873.4,2.5817]
[1734264787938,0.51433304,3874.0,3873.5,2.64250203]
[1734264788231,0.7869,3873.9,3873.5,0.06087203]
[1734264788533,0.7869,3873.9,3873.3,2.58176]
[1734264788838,0.7869,3873.9,3872.5,3.65646496]
[1734264788839,0.7869,3873.9,3872.4,1.07418496]
[1734264789142,0.7869,3873.9,3872.8,2.5821]
[1734264789339,3.09566304,3874.0,3872.5,3.47592455]
[1734264789340,0.7869,3873.7,3872.5,3.47592455]
[1734264789489,0.7869,3873.7,3872.9,0.06205276]
[1734264789835,0.7869,3873.7,3872.6,2.58222]
[1734264790002,0.7869,3873.7,3873.0,0.06251728]
[1734264790411,0.51225674,3873.4,3872.2,3.41398]
[1734264790585,0.51225674,3873.4,3873.1,0.06228339]